bitfinex-derivatives/quotes_SOLF0:USTF0_20250111
["timestamp","ask_amount","ask_price","bid_price","bid_amount"]
[1736568004507,2.6836,186.35,186.31,7.21624833]
[1736568004905,2.6841,186.31,186.3,5.36]
[1736568005111,2.6841,186.31,186.27,7.21624833]
[1736568005306,2.6841,186.31,186.24,5.36]
[1736568005502,2.6841,186.31,186.19,1.6567]
[1736568005713,2.6842,186.3,186.25,7.21624833]
[1736568006612,3.0848,186.31,186.27,7.21624833]
[1736568009212,1.04,186.34,186.29,7.21624833]
[1736568009411,1.04,186.34,186.31,7.21624833]
[1736568009715,1.04,186.34,186.33,7.21624833]
[1736568012811,1.6583,186.41,186.36,2.6833]
[1736568013013,1.6583,186.41,186.38,7.21624833]
[1736568013213,2.6823,186.44,186.4,7.21624833]
[1736568013517,7.72,186.42,186.4,7.21624833]
[1736568016219,7.72,186.42,186.4,9.89894833]
[1736568016424,5.9574,186.48,186.4,7.21624833]
[1736568016425,1.6451,186.48,186.4,7.21624833]
[1736568016714,1.6451,186.48,186.46,7.21624833]
[1736568021528,2.6812,186.52,186.46,2.6818]
[1736568021824,7.21624833,186.53,186.47,7.21624833]
[1736568023228,9.89714833,186.53,186.47,9.89794833]
[1736568024322,2.6811,186.52,186.47,7.21624833]
[1736568027939,1.6613,186.54,186.49,7.21624833]
[1736568028128,2.6808,186.54,186.51,7.21624833]
[1736568028326,1.6516,186.56,186.51,7.21624833]
[1736568028734,2.6806,186.55,186.51,7.21624833]
[1736568034033,4.3321,186.56,186.51,7.21624833]
[1736568034237,4.3321,186.56,186.53,7.21624833]
[1736568036935,2.6805,186.56,186.53,7.21624833]
[1736568039732,2.6806,186.55,186.53,7.21624833]
[1736568042639,2.6806,186.55,186.51,9.89744833]
[1736568043140,2.6806,186.55,186.51,7.21624833]
[1736568044943,2.6806,186.55,186.53,7.21624833]
[1736568045538,4.3377,186.57,186.53,7.21624833]
[1736568047738,2.6804,186.57,186.53,7.21624833]
[1736568047939,8.86878957,186.58,186.55,7.21624833]
[1736568054748,6.18858957,186.58,186.55,7.21624833]
[1736568055454,6.18858957,186.58,186.57,7.21624833]
[1736568056851,2.68,186.59,186.57,7.21624833]
[1736568058554,7.21624833,186.61,186.54,7.21624833]
[1736568059051,2.6804,186.57,186.54,7.21624833]
[1736568063252,7.21624833,186.61,186.52,5.36]
[1736568063449,7.21624833,186.59,186.46,3.2977]
[1736568063653,7.21624833,186.57,186.47,5.36]
[1736568063860,7.21624833,186.55,186.46,1.6755]
[1736568064154,7.21624833,186.55,186.49,7.21624833]
[1736568065659,1.5635,186.56,186.49,7.21624833]
[1736568065961,2.681,186.53,186.49,7.21624833]
[1736568066653,2.681,186.53,186.47,2.6817]
[1736568066654,8.57184858,186.58,186.51,7.21624833]
[1736568066861,7.04274858,186.58,186.56,7.21624833]
[1736568067360,6.24064515,186.61,186.56,7.21624833]
[1736568069161,2.6803,186.57,186.56,7.21624833]
[1736568072564,4.28,186.58,186.56,7.21624833]
[1736568078361,1.7561,186.58,186.56,7.21624833]
[1736568078560,7.05981494,186.66,186.56,7.21624833]
[1736568078865,7.05981494,186.66,186.63,7.21624833]
[1736568079366,153.3129177,186.68,186.63,7.21624833]
[1736568079867,4.9216,186.68,186.63,7.21624833]
[1736568080171,2.6793,186.65,186.63,7.21624833]
[1736568082758,2.6793,186.64,186.63,7.21624833]
[1736568084167,2.6793,186.64,186.61,7.21624833]
[1736568085360,7.21624833,186.67,186.55,1.5952]
[1736568085563,7.21624833,186.65,186.59,7.21624833]
[1736568086769,2.6797,186.62,186.59,7.21624833]
[1736568090173,12.13784833,186.68,186.61,7.21624833]
[1736568090770,2.6795,186.63,186.61,7.21624833]
[1736568094574,7.05523641,186.69,186.61,7.21624833]
[1736568094780,2.6793,186.64,186.61,7.21624833]
[1736568097573,2.6793,186.64,186.63,7.21624833]
[1736568099075,2.6792,186.66,186.63,7.21624833]
[1736568099280,2.6792,186.66,186.65,7.21624833]
[1736568099481,7.05523641,186.7,186.65,7.21624833]
[1736568099678,151.7239177,186.71,186.65,7.21624833]
[1736568100287,3.3326,186.71,186.65,7.21624833]
[1736568100787,2.679,186.67,186.65,7.21624833]
[1736568102489,3.3326,186.71,186.65,7.21624833]
[1736568102684,3.3326,186.71,186.56,5.36]
[1736568102685,7.21624833,186.68,186.56,5.36]
[1736568102885,7.21624833,186.66,186.59,7.21624833]
[1736568103082,12.58424833,186.66,186.59,7.21624833]
[1736568104086,2.6793,186.64,186.59,7.21624833]
[1736568104287,12.58424833,186.66,186.59,7.21624833]
[1736568104892,2.6799,186.61,186.59,7.21624833]
[1736568107994,7.21624833,186.66,186.59,7.21624833]
[1736568108184,1.36,186.68,186.61,7.21624833]
[1736568108390,8.57624833,186.68,186.61,7.21624833]
[1736568108894,2.6796,186.62,186.61,7.21624833]
[1736568109886,2.6799,186.61,186.59,7.21624833]
[1736568113795,2.6795,186.63,186.59,7.21624833]
[1736568113992,2.6795,186.63,186.62,7.21624833]
[1736568121801,7.04634501,186.67,186.62,7.21624833]
[1736568122006,2.6793,186.65,186.62,7.21624833]
[1736568122212,7.04634501,186.67,186.62,7.21624833]
[1736568122709,2.6794,186.63,186.62,7.21624833]
[1736568125311,2.6792,186.65,186.62,7.21624833]
[1736568126612,2.6793,186.64,186.62,7.21624833]
[1736568128613,2.6794,186.63,186.62,7.21624833]
[1736568132018,4.0394,186.63,186.62,7.21624833]
[1736568132206,1.36,186.63,186.62,7.21624833]
[1736568143431,1.36,186.63,186.58,2.6801]
[1736568143617,4.0395,186.63,186.61,7.21624833]
[1736568144022,1.36,186.63,186.61,7.21624833]
[1736568144323,2.6796,186.62,186.61,7.21624833]
[1736568145231,2.6796,186.62,186.56,2.6804]
[1736568145423,2.6797,186.61,186.59,7.21624833]
[1736568146730,2.6796,186.62,186.59,7.21624833]
[1736568147520,2.6796,186.62,186.61,7.21624833]
[1736568150135,1.36,186.63,186.56,5.4]
[1736568150324,1.36,186.63,186.58,7.21624833]
[1736568150933,1.36,186.63,186.54,6.9842]
[1736568151131,1.36,186.63,186.58,7.21624833]
[1736568152133,2.6798,186.61,186.58,7.21624833]
[1736568152432,2.6798,186.61,186.6,7.21624833]
[1736568152932,1.36,186.63,186.6,7.21624833]
[1736568153133,2.6796,186.62,186.6,7.21624833]
[1736568153337,1.36,186.63,186.6,7.21624833]
[1736568155133,2.6796,186.62,186.6,7.21624833]
[1736568155929,2.6797,186.61,186.6,7.21624833]
[1736568156330,2.6797,186.61,186.56,2.6805]
[1736568156534,2.6797,186.61,186.59,7.21624833]
[1736568175445,7.04634501,186.67,186.59,7.21624833]
[1736568175649,14.26259334,186.67,186.59,7.21624833]
[1736568177151,2.6796,186.62,186.59,7.21624833]
[1736568179560,2.6799,186.6,186.57,7.21624833]
[1736568179761,7.21624833,186.63,186.54,6.9842]
[1736568180064,7.21624833,186.63,186.56,7.21624833]
[1736568180261,2.6801,186.59,186.56,7.21624833]
[1736568180966,4.0401,186.59,186.56,7.21624833]
[1736568181165,1.36,186.59,186.56,7.21624833]
[1736568181565,1.36,186.59,186.54,9.6649]
[1736568181768,1.36,186.59,186.58,7.21624833]
[1736568184468,1.36,186.59,186.58,9.89644833]
[1736568185562,1.36,186.59,186.58,7.21624833]
[1736568193070,1.36,186.59,186.56,7.21624833]
[1736568198075,1.36,186.59,186.54,7.21624833]
[1736568198377,8.57624833,186.59,186.54,7.21624833]
[1736568198676,2.6805,186.56,186.54,7.21624833]
[1736568202472,7.21624833,186.55,186.49,7.21624833]
[1736568202776,8.86524833,186.55,186.49,7.21624833]
[1736568203471,2.6812,186.52,186.49,7.21624833]
[1736568206876,2.6809,186.54,186.51,7.21624833]
[1736568213183,1.5893,186.57,186.53,7.21624833]
[1736568213383,14.26880396,186.6,186.53,7.21624833]
[1736568213676,7.21624833,186.6,186.55,7.21624833]
[1736568214277,2.6804,186.57,186.55,7.21624833]
[1736568214979,2.6805,186.56,186.53,7.21624833]
[1736568219582,7.21624833,186.59,186.53,7.21624833]
[1736568219888,2.6807,186.55,186.53,7.21624833]
[1736568220987,4.0507,186.55,186.53,7.21624833]
[1736568227690,4.0507,186.55,186.51,7.21624833]
[1736568230896,2.6808,186.54,186.51,7.21624833]
[1736568231493,8.58624833,186.55,186.48,5.36]
[1736568231690,8.58624833,186.55,186.48,12.57624833]
[1736568232093,8.58624833,186.55,186.48,7.21624833]
[1736568232587,2.6811,186.52,186.48,7.21624833]
[1736568240606,2.6811,186.52,186.5,7.21624833]
[1736568241402,2.6809,186.54,186.5,7.21624833]
[1736568247301,6.9609,186.54,186.5,7.21624833]
[1736568247905,2.681,186.53,186.47,2.6817]
[1736568248106,4.28,186.54,186.49,7.21624833]
[1736568249106,2.681,186.52,186.49,7.21624833]
[1736568250711,2.681,186.52,186.47,2.6817]
[1736568251012,2.681,186.52,186.5,7.21624833]
[1736568252012,4.28,186.54,186.5,7.21624833]
[1736568252211,6.9608,186.54,186.5,7.21624833]
[1736568253513,2.6809,186.53,186.5,7.21624833]
[1736568261010,6.9608,186.54,186.5,7.21624833]
[1736568261416,4.28,186.54,186.5,7.21624833]
[1736568264221,4.28,186.54,186.52,7.21624833]
[1736568265122,4.28,186.54,186.52,9.89724833]
[1736568268514,4.28,186.54,186.47,1.5153]
[1736568268723,4.28,186.54,186.51,7.21624833]
[1736568268923,4.28,186.54,186.49,7.21624833]
[1736568270220,2.6809,186.53,186.49,7.21624833]
[1736568273624,6.9609,186.53,186.49,7.21624833]
[1736568276528,2.6812,186.51,186.48,5.36]
[1736568276835,2.6812,186.51,186.49,7.21624833]
[1736568278330,4.28,186.53,186.49,7.21624833]
[1736568278533,6.9609,186.53,186.49,7.21624833]
[1736568278830,4.28,186.53,186.51,7.21624833]
[1736568280132,4.28,186.53,186.49,7.21624833]
[1736568281135,2.6811,186.52,186.49,7.21624833]
[1736568285729,6.9611,186.52,186.49,7.21624833]
[1736568288735,4.28,186.52,186.49,7.21624833]
[1736568288937,4.28,186.52,186.49,9.89764833]
[1736568289632,4.28,186.52,186.49,7.21624833]
[1736568292538,6.9611,186.52,186.47,2.6817]
[1736568292739,6.9611,186.52,186.49,7.21624833]
[1736568293140,6.9611,186.52,186.47,2.6817]
[1736568293340,6.9611,186.52,186.49,7.21624833]
[1736568298544,4.28,186.52,186.49,7.21624833]
[1736568303944,7.21624833,186.51,186.41,1.5555]
[1736568304346,7.21624833,186.51,186.43,7.21624833]
[1736568305245,7.21624833,186.51,186.45,7.21624833]
[1736568305452,11.49624833,186.51,186.45,7.21624833]
[1736568306248,4.28,186.51,186.45,7.21624833]
[1736568306449,2.6815,186.49,186.45,7.21624833]
[1736568308947,2.6819,186.46,186.4,2.6827]
[1736568309252,2.6819,186.46,186.42,7.21624833]
[1736568310053,2.6819,186.46,186.44,7.21624833]
[1736568311048,3.2506,186.5,186.44,7.21624833]
[1736568311249,3.2506,186.5,186.46,7.21624833]
[1736568313250,2.6815,186.49,186.46,7.21624833]
[1736568313551,2.6815,186.49,186.44,2.6822]
[1736568313855,2.6815,186.49,186.46,7.21624833]
[1736568314246,2.6816,186.48,186.46,7.21624833]
[1736568318952,3.2506,186.5,186.46,7.21624833]
[1736568319149,2.6817,186.47,186.46,7.21624833]
[1736568330765,6.9717,186.47,186.46,7.21624833]
[1736568331775,6.9717,186.47,186.42,2.6824]
[1736568332071,6.9717,186.47,186.45,7.21624833]
[1736568333372,4.29,186.47,186.46,2.6819]
[1736568333578,2.681,186.52,186.46,2.6819]
[1736568333873,2.681,186.52,186.51,7.21624833]
[1736568334770,3.991,186.52,186.51,7.21624833]
[1736568336770,1.31,186.52,186.51,7.21624833]
[1736568347284,1.31,186.52,186.49,2.6814]
[1736568347481,1.31,186.52,186.51,7.21624833]
[1736568363100,5.92764612,186.6,186.51,7.21624833]
[1736568363294,5.92764612,186.6,186.57,7.21624833]
[1736568364102,2.6797,186.62,186.57,7.21624833]
[1736568364401,3.1301,186.63,186.57,7.21624833]
[1736568364601,10.34634833,186.63,186.57,7.21624833]
[1736568364797,2.68,186.6,186.57,7.21624833]
[1736568365704,3.1301,186.63,186.59,7.21624833]
[1736568365898,1.5639,186.63,186.61,7.21624833]
[1736568366202,1.6806,186.64,186.61,7.21624833]
[1736568367105,4.36,186.64,186.61,7.21624833]
[1736568368699,3.2053,186.68,186.55,5.38]
[1736568368898,2.6789,186.67,186.65,7.21624833]
[1736568370906,2.679,186.66,186.65,7.21624833]
[1736568380208,2.6787,186.68,186.65,7.21624833]
[1736568380417,7.65450469,186.73,186.67,7.21624833]
[1736568380711,7.65450469,186.73,186.7,7.21624833]
[1736568381907,6.12030469,186.73,186.7,7.21624833]
[1736568382113,2.6782,186.72,186.7,7.21624833]
[1736568382915,3.1194,186.76,186.7,7.21624833]
[1736568383106,3.1194,186.76,186.72,7.21624833]
[1736568383814,2.678,186.73,186.72,7.21624833]
[1736568388518,2.678,186.73,186.68,2.6787]
[1736568388818,2.678,186.73,186.72,7.21624833]
[1736568392521,2.678,186.73,186.68,2.6787]
[1736568392716,2.678,186.73,186.72,7.21624833]
[1736568398223,2.6778,186.75,186.72,7.21624833]
[1736568398411,2.6778,186.75,186.74,7.21624833]
[1736568405423,53.34828628,186.77,186.74,7.21624833]
[1736568405625,56.02588628,186.77,186.76,7.21624833]
[1736568406523,2.6776,186.77,186.76,7.21624833]
[1736568411727,2.6773,186.79,186.76,7.21624833]
[1736568412026,2.6773,186.79,186.78,7.21624833]
[1736568432936,7.21624833,186.79,186.61,29.66600606]
[1736568433234,2.6785,186.7,186.62,7.0342]
[1736568433439,7.21624833,186.73,186.67,7.21624833]
[1736568434344,2.6785,186.7,186.67,7.21624833]
[1736568436839,2.6789,186.67,186.62,4.3538]
[1736568437040,7.21624833,186.69,186.58,31.08489916]
[1736568437241,17.09736868,186.76,186.62,7.21624833]
[1736568437438,2.6791,186.66,186.64,7.21624833]
[1736568439247,2.6789,186.68,186.64,7.21624833]
[1736568439444,2.6789,186.68,186.67,7.21624833]
[1736568440139,2.6786,186.69,186.67,7.21624833]
[1736568444052,7.21624833,186.74,186.67,7.21624833]
[1736568444352,2.6785,186.7,186.67,7.21624833]
[1736568445955,2.6785,186.7,186.69,7.21624833]
[1736568447755,2.6789,186.68,186.64,5.36]
[1736568447959,7.21624833,186.72,186.64,5.36]
[1736568448158,7.21624833,186.72,186.66,7.21624833]
[1736568448353,7.21624833,186.72,186.64,5.36]
[1736568448553,7.21624833,186.7,186.64,5.36]
[1736568448752,7.21624833,186.7,186.64,12.57624833]
[1736568450355,2.6792,186.65,186.64,12.57624833]
[1736568450857,2.6792,186.65,186.64,5.36]
[1736568451058,2.6792,186.65,186.64,12.57624833]
[1736568451657,2.6792,186.65,186.64,7.21624833]
[1736568459958,2.6792,186.65,186.63,7.21624833]
[1736568463664,14.25628277,186.75,186.63,7.21624833]
[1736568463864,14.25628277,186.75,186.69,7.21624833]
[1736568464063,7.21624833,186.75,186.69,7.21624833]
[1736568464261,2.6786,186.7,186.69,7.21624833]
[1736568465561,2.6782,186.73,186.69,7.21624833]
[1736568465867,18.21359903,186.76,186.69,7.21624833]
[1736568466271,2.6779,186.74,186.69,7.21624833]
[1736568466569,7.21624833,186.74,186.67,7.21624833]
[1736568466764,2.6787,186.68,186.65,7.21624833]
[1736568468466,2.679,186.66,186.61,2.6796]
[1736568468666,2.679,186.66,186.64,7.21624833]
[1736568472172,148.3913177,186.73,186.64,7.21624833]
[1736568472372,2.6787,186.69,186.66,7.21624833]
[1736568473172,2.6788,186.68,186.66,7.21624833]
[1736568475979,2.6786,186.69,186.66,7.21624833]
[1736568482686,2.6786,186.69,186.67,7.21624833]
[1736568484878,7.21624833,186.74,186.67,7.21624833]
[1736568485078,7.05009984,186.75,186.71,7.21624833]
[1736568485586,2.678,186.74,186.71,7.21624833]
[1736568486381,2.6781,186.73,186.71,7.21624833]
[1736568488890,2.6782,186.72,186.71,7.21624833]
[1736568497700,2.678,186.74,186.71,7.21624833]
[1736568497901,2.678,186.74,186.69,2.6785]
[1736568497902,2.678,186.74,186.73,7.21624833]
[1736568499304,2.6778,186.75,186.73,7.21624833]
[1736568501100,148.3913177,186.81,186.73,7.21624833]
[1736568501407,148.3913177,186.81,186.77,7.21624833]
[1736568502110,192.70539543,186.83,186.77,7.21624833]
[1736568502111,7.21624833,186.83,186.77,7.21624833]
[1736568503013,2.6769,186.81,186.77,7.21624833]
[1736568503810,2.677,186.8,186.77,7.21624833]
[1736568507615,2.677,186.8,186.75,2.6777]
[1736568507811,2.677,186.8,186.77,7.21624833]
[1736568517715,7.21624833,186.83,186.77,7.21624833]
[1736568517917,2.6772,186.79,186.77,7.21624833]
[1736568518719,7.21624833,186.81,186.69,3.1951]
[1736568518924,7.21624833,186.77,186.72,7.21624833]
[1736568520524,2.6779,186.75,186.72,7.21624833]
[1736568522620,2.678,186.73,186.7,7.21624833]
[1736568527029,7.21624833,186.73,186.6,1.5826]
[1736568527228,2.6787,186.69,186.67,7.21624833]
[1736568527629,2.6787,186.69,186.63,2.6794]
[1736568527821,2.6787,186.69,186.67,7.21624833]
[1736568528027,7.21624833,186.71,186.62,8.0396]
[1736568528225,7.21624833,186.71,186.64,7.21624833]
[1736568528825,2.6786,186.69,186.64,7.21624833]
[1736568529023,7.21624833,186.71,186.66,7.21624833]
[1736568530330,2.6786,186.69,186.66,7.21624833]
[1736568530534,2.6786,186.69,186.68,7.21624833]
[1736568530832,2.6784,186.71,186.68,7.21624833]
[1736568531033,7.21624833,186.75,186.68,7.21624833]
[1736568533137,2.6785,186.7,186.68,7.21624833]
[1736568535833,2.6786,186.69,186.68,7.21624833]
[1736568536236,2.6786,186.69,186.66,7.21624833]
[1736568539340,2.6787,186.69,186.66,7.21624833]
[1736568539542,7.21624833,186.73,186.66,7.21624833]
[1736568540240,7.21624833,186.71,186.66,7.21624833]
[1736568540744,7.21624833,186.73,186.66,7.21624833]
[1736568542436,2.6785,186.7,186.66,7.21624833]
[1736568544149,7.05514094,186.77,186.68,7.21624833]
[1736568544442,2.6783,186.72,186.68,7.21624833]
[1736568544839,7.21624833,186.73,186.67,7.21624833]
[1736568545746,2.6786,186.7,186.67,7.21624833]
[1736568546046,7.21624833,186.73,186.67,7.21624833]
[1736568547243,2.6786,186.69,186.67,7.21624833]
[1736568550048,2.6785,186.7,186.67,7.21624833]
[1736568556759,2.6781,186.73,186.67,7.21624833]
[1736568557057,14.27138927,186.76,186.71,7.21624833]
[1736568557454,7.21624833,186.76,186.71,7.21624833]
[1736568558058,2.6779,186.75,186.71,7.21624833]
[1736568562467,67.93747873,186.78,186.71,7.21624833]
[1736568562669,2.6776,186.76,186.73,7.21624833]
[1736568563361,2.6775,186.77,186.73,7.21624833]
[1736568564270,7.21624833,186.8,186.73,7.21624833]
[1736568564469,2.6773,186.78,186.73,9.89424833]
[1736568564969,2.6773,186.78,186.75,7.21624833]
[1736568565665,7.21624833,186.8,186.64,5.36]
[1736568565968,7.21624833,186.75,186.69,7.21624833]
[1736568566662,9.89394833,186.75,186.69,9.89484833]
[1736568567567,7.21624833,186.75,186.64,5.38]
[1736568567774,7.21624833,186.73,186.66,7.21624833]
[1736568568372,13.01561754,186.8,186.66,7.21624833]
[1736568568373,2.6786,186.7,186.66,7.21624833]
[1736568568566,7.21624833,186.71,186.62,5.38]
[1736568568873,7.21624833,186.71,186.64,7.21624833]
[1736568569972,2.6786,186.69,186.64,7.21624833]
[1736568578480,2.6786,186.69,186.66,7.21624833]
[1736568579480,7.21624833,186.73,186.66,7.21624833]
[1736568579683,2.6785,186.7,186.66,7.21624833]
[1736568585783,2.6786,186.69,186.66,7.21624833]
[1736568586189,7.21624833,186.73,186.68,7.21624833]
[1736568586491,2.6784,186.71,186.68,7.21624833]
[1736568587590,2.6785,186.7,186.68,7.21624833]
[1736568589185,2.6783,186.71,186.68,7.21624833]
[1736568589496,2.6783,186.71,186.7,7.21624833]
[1736568597491,7.21624833,186.73,186.68,7.21624833]
[1736568597790,2.6787,186.69,186.68,7.21624833]
[1736568598095,7.21624833,186.73,186.66,7.21624833]
[1736568598495,2.6789,186.67,186.65,7.21624833]
[1736568606692,7.21624833,186.71,186.65,7.21624833]
[1736568606897,2.6793,186.64,186.62,7.21624833]
[1736568607299,7.21624833,186.67,186.54,3.1944]
[1736568607499,2.6796,186.63,186.6,7.21624833]
[1736568607997,2.6796,186.63,186.55,5.36]
[1736568607998,7.21624833,186.67,186.62,7.21624833]
[1736568608302,2.6793,186.64,186.62,7.21624833]
[1736568610406,7.21624833,186.67,186.62,7.21624833]
[1736568610600,2.679,186.66,186.64,7.21624833]
[1736568610810,1.6721,186.68,186.64,7.21624833]
[1736568612102,7.21624833,186.71,186.64,7.21624833]
[1736568612807,2.6789,186.67,186.66,7.21624833]
[1736568615602,2.6788,186.68,186.66,7.21624833]
[1736568616603,2.6783,186.71,186.66,7.21624833]
[1736568616908,15.93162082,186.73,186.66,7.21624833]
[1736568617108,8.87084833,186.73,186.66,7.21624833]
[1736568617708,2.6787,186.69,186.66,7.21624833]
[1736568618609,8.87084833,186.73,186.66,7.21624833]
[1736568618610,2.6787,186.68,186.66,7.21624833]
[1736568620604,7.06077249,186.75,186.66,7.21624833]
[1736568620801,7.06077249,186.75,186.7,7.21624833]
[1736568621005,9.73867249,186.75,186.72,7.21624833]
[1736568621509,2.6779,186.74,186.72,7.21624833]
[1736568624412,1.6796,186.76,186.72,7.21624833]
[1736568624710,2.678,186.73,186.72,7.21624833]
[1736568630724,2.6782,186.72,186.71,7.21624833]
[1736568634225,1.6592,186.79,186.71,7.21624833]
[1736568634425,8.87544833,186.79,186.73,7.21624833]
[1736568634828,2.6777,186.76,186.73,7.21624833]
[1736568635631,2.6778,186.75,186.73,7.21624833]
[1736568636634,8.87544833,186.79,186.73,7.21624833]
[1736568636830,2.6779,186.74,186.73,7.21624833]
[1736568641034,2.6779,186.74,186.71,7.21624833]
[1736568643242,2.6779,186.74,186.73,7.21624833]
[1736568644437,8.87544833,186.79,186.73,7.21624833]
[1736568644638,2.6777,186.75,186.73,7.21624833]
[1736568649330,2.6776,186.77,186.73,7.21624833]
[1736568649531,8.87544833,186.79,186.73,7.21624833]
[1736568650038,2.6776,186.76,186.73,7.21624833]
[1736568650536,2.6773,186.78,186.75,7.21624833]
[1736568650735,7.05036701,186.81,186.77,7.21624833]
[1736568651242,2.6771,186.8,186.77,7.21624833]
[1736568653335,7.80769929,186.82,186.77,7.21624833]
[1736568653631,2.6772,186.79,186.77,7.21624833]
[1736568654441,2.6772,186.79,186.74,2.6777]
[1736568654633,7.21624833,186.81,186.75,7.21624833]
[1736568654833,2.6776,186.76,186.75,7.21624833]
[1736568655039,7.21624833,186.79,186.73,7.21624833]
[1736568655444,2.6777,186.76,186.73,7.21624833]
[1736568658344,2.6777,186.75,186.73,7.21624833]
[1736568659041,2.6779,186.74,186.73,7.21624833]
[1736568659446,2.6779,186.74,186.71,7.21624833]
[1736568662446,2.6779,186.74,186.73,7.21624833]
[1736568663747,7.21624833,186.79,186.73,7.21624833]
[1736568663748,7.21624833,186.8,186.73,7.21624833]
[1736568664545,7.21624833,186.8,186.71,2.6783]
[1736568664843,7.21624833,186.78,186.71,7.21624833]
[1736568665548,7.21624833,186.76,186.69,2.6786]
[1736568665844,7.21624833,186.76,186.69,7.21624833]
[1736568666446,2.6782,186.72,186.69,7.21624833]
[1736568668045,2.6782,186.72,186.67,7.21624833]
[1736568668240,7.21624833,186.72,186.67,7.21624833]
[1736568669150,2.6786,186.69,186.67,7.21624833]
[1736568669653,2.6786,186.69,186.65,7.21624833]
[1736568671053,2.6786,186.69,186.67,7.21624833]
[1736568671553,2.6785,186.7,186.67,7.21624833]
[1736568681960,2.6786,186.69,186.67,7.21624833]
[1736568682463,7.21624833,186.72,186.67,7.21624833]
[1736568682650,7.21624833,186.72,186.65,7.21624833]
[1736568683559,2.6787,186.69,186.65,7.21624833]
[1736568685063,2.6783,186.71,186.67,7.21624833]
[1736568687363,1.5303,186.73,186.67,7.21624833]
[1736568687563,2.6785,186.7,186.67,7.21624833]
[1736568691667,2.6783,186.71,186.67,7.21624833]
[1736568710382,2.6782,186.72,186.67,9.89504833]
[1736568710688,7.04878906,186.76,186.71,7.21624833]
[1736568711185,2.6778,186.75,186.71,7.21624833]
[1736568711384,7.04878906,186.76,186.71,7.21624833]
[1736568711990,2.678,186.74,186.71,7.21624833]
[1736568712490,2.678,186.73,186.71,7.21624833]
[1736568713286,7.21624833,186.74,186.67,7.21624833]
[1736568715085,2.6784,186.71,186.67,7.21624833]
[1736568718398,2.6785,186.7,186.67,7.21624833]
[1736568720793,2.6785,186.7,186.66,7.21624833]
[1736568721587,2.6785,186.7,186.65,2.6791]
[1736568721793,2.6785,186.7,186.66,7.21624833]
[1736568722394,2.6785,186.7,186.65,2.6791]
[1736568722589,2.6786,186.69,186.66,7.21624833]
[1736568723094,2.6786,186.69,186.64,2.6793]
[1736568723296,2.6786,186.69,186.66,7.21624833]
[1736568723795,2.6786,186.69,186.64,2.6793]
[1736568723996,2.6786,186.69,186.66,7.21624833]
[1736568724195,2.6786,186.69,186.64,2.6793]
[1736568724392,2.6786,186.69,186.66,7.21624833]
[1736568726900,2.6786,186.69,186.64,2.6793]
[1736568727195,2.6786,186.69,186.66,7.21624833]
[1736568728697,2.6783,186.71,186.68,7.21624833]
[1736568731805,2.6785,186.7,186.68,7.21624833]
[1736568733204,1.6544,186.73,186.68,7.21624833]
[1736568733506,2.6783,186.71,186.68,7.21624833]
[1736568734800,7.21624833,186.69,186.48,26.85069239]
[1736568735100,7.21624833,186.65,186.55,5.38]
[1736568735400,7.21624833,186.65,186.58,7.21624833]
[1736568739107,2.6797,186.61,186.58,7.21624833]
[1736568741207,2.6799,186.6,186.58,7.21624833]
[1736568744510,2.6799,186.6,186.56,7.21624833]
[1736568747011,2.6799,186.6,186.54,4.336]
[1736568747311,2.6799,186.6,186.57,7.21624833]
[1736568749109,2.68,186.59,186.57,7.21624833]
[1736568749813,7.21624833,186.63,186.57,7.21624833]
[1736568751214,2.68,186.6,186.57,7.21624833]
[1736568753013,2.6802,186.59,186.57,7.21624833]
[1736568753412,7.21624833,186.63,186.57,7.21624833]
[1736568753912,2.6802,186.58,186.57,7.21624833]
[1736568755413,2.6802,186.58,186.54,1.6553]
[1736568755618,2.6802,186.58,186.55,7.21624833]
[1736568762817,2.68,186.6,186.57,7.21624833]
[1736568772721,7.21624833,186.63,186.57,7.21624833]
[1736568773025,2.6801,186.59,186.57,7.21624833]
[1736568774116,7.21624833,186.63,186.54,1.6553]
[1736568774319,7.21624833,186.59,186.47,1.572]
[1736568774515,7.21624833,186.57,186.51,7.21624833]
[1736568777125,2.6807,186.55,186.51,7.21624833]
[1736568777524,7.21624833,186.57,186.51,7.21624833]
[1736568779125,2.6808,186.54,186.51,7.21624833]